fUST/lending_fUST_20250113
["ID","MTS","AMOUNT","RATE_DAILY","PERIOD"]
[348646663,1736697631774,160.0,0.00024389,120]
[348646665,1736697699621,24900.0,0.00014714,2]
[348646675,1736698087606,400.0,0.00013973,2]
[348646713,1736698232680,-4235.62669232,0.00015389,2]
[348646715,1736698232690,-3982.6513413,0.00015489,2]
[348646717,1736698232700,-259.83437842,0.00015637,2]
[348646719,1736698232710,-300.0,0.0001564,2]
[348646721,1736698232719,-4751.95125264,0.00015641,2]
[348646723,1736698232728,-883.36977449,0.00015727,2]
[348646725,1736698232738,-151.0,0.00015729,2]
[348646727,1736698232747,-357.90726477,0.00015737,2]
[348646729,1736698232756,-500.0,0.00015737,2]
[348646731,1736698232765,-165.37468559,0.00015737,2]
[348646733,1736698232774,-500.0,0.00015737,2]
[348646735,1736698232784,-500.0,0.00015737,2]
[348646737,1736698232794,-500.0,0.00015737,2]
[348646739,1736698232803,-500.0,0.00015737,2]
[348646741,1736698232812,-500.0,0.00015737,2]
[348646743,1736698232821,-500.0,0.00015737,2]
[348646745,1736698232830,-500.0,0.00015737,2]
[348646747,1736698232839,-500.0,0.00015737,2]
[348646748,1736698232849,-500.0,0.00015737,2]
[348646750,1736698232858,-500.0,0.00015737,2]
[348646752,1736698232867,-515.08980602,0.00015737,2]
[348646754,1736698232876,-343.7419545,0.00015737,2]
[348646757,1736698232888,-156.2580455,0.00015737,2]
[348646759,1736698232897,-500.0,0.00015737,2]
[348646761,1736698232906,-500.0,0.00015737,2]
[348646763,1736698232915,-500.0,0.00015737,2]
[348646765,1736698232924,-500.0,0.00015737,2]
[348646767,1736698232933,-500.0,0.00015737,2]
[348646769,1736698232942,-500.0,0.00015737,2]
[348646772,1736698232951,-500.0,0.00015737,2]
[348646775,1736698232961,-500.0,0.00015737,2]
[348646778,1736698232970,-500.0,0.00015737,2]
[348646781,1736698232979,-500.0,0.00015737,2]
[348646784,1736698232988,-500.0,0.00015737,2]
[348646787,1736698232997,-500.0,0.00015737,2]
[348646790,1736698233006,-500.0,0.00015737,2]
[348646793,1736698233015,-500.0,0.00015737,2]
[348646796,1736698233024,-500.0,0.00015737,2]
[348646799,1736698233034,-468.14549919,0.00015737,2]
[348646802,1736698233043,-500.0,0.00015737,2]
[348646805,1736698233052,-500.0,0.00015737,2]
[348646808,1736698233062,-500.0,0.00015737,2]
[348646811,1736698233072,-75.69604512,0.00015737,2]
[348646814,1736698233084,-424.30395488,0.00015737,2]
[348646817,1736698233093,-500.0,0.00015737,2]
[348646820,1736698233103,-500.0,0.00015737,2]
[348646823,1736698233112,-500.0,0.00015737,2]
[348646826,1736698233121,-500.0,0.00015737,2]
[348646828,1736698233131,-500.0,0.00015737,2]
[348646830,1736698233140,-500.0,0.00015737,2]
[348646832,1736698233150,-500.0,0.00015737,2]
[348646834,1736698233160,-256.17958524,0.00015737,2]
[348646837,1736698233169,-500.0,0.00015737,2]
[348646840,1736698233179,-500.0,0.00015737,2]
[348646843,1736698233189,-500.0,0.00015737,2]
[348646847,1736698233199,-500.0,0.00015737,2]
[348646849,1736698233208,-500.0,0.00015737,2]
[348646850,1736698233218,-500.0,0.00015737,2]
[348646852,1736698233228,-500.0,0.00015737,2]
[348646854,1736698233237,-500.0,0.00015737,2]
[348646856,1736698233246,-500.0,0.00015737,2]
[348646858,1736698233256,-500.0,0.00015737,2]
[348646860,1736698233265,-500.0,0.00015737,2]
[348646862,1736698233274,-500.0,0.00015737,2]
[348646864,1736698233283,-500.0,0.00015737,2]
[348646866,1736698233293,-500.0,0.00015737,2]
[348646868,1736698233303,-500.0,0.00015737,2]
[348646870,1736698233312,-500.0,0.00015737,2]
[348646872,1736698233322,-500.0,0.00015737,2]
[348646874,1736698233331,-500.0,0.00015737,2]
[348646876,1736698233341,-500.0,0.00015737,2]
[348646878,1736698233350,-500.0,0.00015737,2]
[348646880,1736698233360,-500.0,0.00015737,2]
[348646882,1736698233369,-500.0,0.00015737,2]
[348646896,1736698233487,-500.0,0.00015737,2]
[348646898,1736698233503,-225.29005311,0.00015737,2]
[348646901,1736698233515,-274.70994689,0.00015737,2]
[348646903,1736698233524,-225.29005311,0.00015737,2]
[348646905,1736698233541,-274.70994689,0.00015737,2]
[348646907,1736698233551,-630.12933164,0.00015737,2]
[348646909,1736698233561,-500.0,0.00015737,2]
[348646911,1736698233570,-75.15072147,0.00015737,2]
[348646914,1736698233582,-424.84927853,0.00015737,2]
[348646916,1736698233592,-500.0,0.00015737,2]
[348646918,1736698233601,-500.0,0.00015737,2]
[348646920,1736698233611,-500.0,0.00015737,2]
[348646922,1736698233620,-500.0,0.00015737,2]
[348646924,1736698233630,-500.0,0.00015737,2]
[348646926,1736698233639,-500.0,0.00015737,2]
[348646928,1736698233648,-500.0,0.00015737,2]
[348646930,1736698233657,-500.0,0.00015737,2]
[348646931,1736698233667,-500.0,0.00015737,2]
[348646932,1736698233676,-500.0,0.00015737,2]
[348646934,1736698233686,-300.0,0.00015737,2]
[348646936,1736698233697,-500.0,0.00015737,2]
[348646937,1736698233706,-500.0,0.00015737,2]
[348646939,1736698233715,-200.0,0.00015737,2]
[348646941,1736698233724,-500.0,0.00015737,2]
[348646943,1736698233734,-250.0,0.00015737,2]
[348646945,1736698233743,-6337.15747731,0.00015738,2]
[348647082,1736698238278,-21727.91892294,0.00015738,2]
[348647094,1736698238386,-18947.00737367,0.00015738,2]
[348647096,1736698238398,-6444.09190404,0.00015738,2]
[348647101,1736698238439,-252.15239808,0.00015738,2]
[348647533,1736698243434,-1155.0000002,0.00015738,2]
[348650717,1736698506391,3876.96,0.00014,30]
[348650724,1736699017496,4686.71552717,0.00015052,2]
[348650728,1736699124338,-164.469575,0.0002411,52]
[348650729,1736699124363,-164.469575,0.0002411,60]
[348650730,1736699124391,-164.469575,0.0002411,69]
[348650731,1736699124416,-164.469575,0.0002411,77]
[348650732,1736699124441,-164.469575,0.0002411,86]
[348650733,1736699124467,-164.469575,0.0002411,94]
[348650734,1736699124494,-164.469575,0.0002411,103]
[348650735,1736699124520,-164.469575,0.0002411,111]
[348650736,1736699124546,-164.469575,0.0002411,119]
[348650737,1736699124575,-3062.22179582,0.000249,60]
[348650738,1736699124607,-462.97788414,0.00025,60]
[348650739,1736699124634,-18399.93565726,0.00025,100]
[348650740,1736699124664,-7438.69753278,0.00026,120]
[348650741,1736699124694,-721.94109259,0.000261,60]
[348650742,1736699124727,-160.0,0.00026322,120]
[348650743,1736699124755,-424.93715,0.00027,120]
[348650744,1736699124785,-424.93715,0.00027,120]
[348650745,1736699124811,-424.93715,0.00027,120]
[348650746,1736699124836,-424.93715,0.00027,120]
[348650747,1736699124862,-424.93715,0.00027,120]
[348650748,1736699124888,-424.93715,0.00027,120]
[348650749,1736699124918,-424.93715,0.00027,120]
[348650750,1736699124945,-424.93715,0.00027,120]
[348650751,1736699124972,-424.9372,0.00027,120]
[348650752,1736699124999,-400.0,0.00027397,60]
[348650753,1736699125026,-1684.299565,0.00027397,120]
[348650754,1736699125055,-962374.26589741,0.00027397,59]
[348650760,1736699158146,400.0,0.00013973,2]
[348650778,1736699239408,164.469575,0.0002411,120]
[348650779,1736699243097,4167.11482561,0.00015052,2]
[348650804,1736699297280,1254.9644432,0.000125,2]
[348650805,1736699302217,389.681565,0.00014598,2]
[348650821,1736699319852,842.47638265,0.00015,2]
[348650882,1736699432931,-250.0,0.00015188,2]
[348650883,1736699432943,-1417.26902036,0.00015428,2]
[348650884,1736699432958,-917.41086804,0.00015428,2]
[348650885,1736699432970,-300.0,0.00015442,2]
[348650886,1736699432982,-11294.5531873,0.00015443,2]
[348650887,1736699432994,-196.60294461,0.00015537,2]
[348650888,1736699433007,-22301.67192376,0.00015738,2]
[348650889,1736699433020,-1115.16668422,0.00016,2]
[348650890,1736699433032,-9044.82581408,0.00016023,2]
[348650891,1736699433043,-5000.0,0.00016023,2]
[348650892,1736699433054,-5000.0,0.00016023,2]
[348650893,1736699433066,-5000.0,0.00016023,2]
[348650894,1736699433077,-5000.0,0.00016023,2]
[348650895,1736699433090,-1269.96431518,0.00016658,2]
[348650896,1736699433103,-420.0,0.00016893,2]
[348650897,1736699433115,-270.6858273,0.00016975,2]
[348650898,1736699433128,-8801.1499279,0.00017378,2]
[348650899,1736699433140,-166.37604484,0.0001838,2]
[348650900,1736699433153,-587.0,0.0001848,2]
[348650901,1736699433168,-318.53989069,0.0001881,2]
[348650902,1736699433181,-153.44938034,0.00019,2]
[348650903,1736699433195,-17149.05369742,0.00019078,2]
[348650904,1736699433209,-8244.03037396,0.00019145,2]
[348650905,1736699433228,-1017.36709984,0.00019145,2]
[348650906,1736699433239,-301.59446307,0.00019166,2]
[348650907,1736699433249,-155.26,0.00019166,2]
[348650908,1736699433259,-240.49053117,0.00019169,2]
[348650909,1736699433271,-500.0,0.00019169,2]
[348650910,1736699433283,-500.0,0.00019173,2]
[348650911,1736699433297,-500.0,0.00019173,2]
[348650912,1736699433308,-473.44255772,0.00019173,2]
[348650913,1736699433323,-26.55744228,0.00019173,2]
[348650914,1736699433333,-271.78797624,0.00019173,2]
[348650915,1736699433345,-463.20109519,0.00019173,2]
[348650916,1736699433356,-500.0,0.00019178,2]
[348650917,1736699433367,-503.38147842,0.00019178,2]
[348650918,1736699433377,-500.0,0.00019178,2]
[348650919,1736699433389,-500.0,0.00019178,2]
[348650920,1736699433400,-500.0,0.00019178,2]
[348650921,1736699433411,-500.0,0.00019178,2]
[348650922,1736699433422,-500.0,0.00019178,2]
[348650923,1736699433432,-365.82308792,0.00019178,2]
[348650924,1736699433442,-500.0,0.00019178,2]
[348650925,1736699433453,-500.0,0.00019178,2]
[348650926,1736699433467,-500.0,0.00019178,2]
[348650927,1736699433478,-500.0,0.00019178,2]
[348650928,1736699433490,-500.0,0.00019178,2]
[348650929,1736699433502,-494.7571562,0.00019178,2]
[348650930,1736699433517,-5.2428438,0.00019178,2]
[348650931,1736699433528,-500.0,0.00019178,2]
[348650932,1736699433539,-446.16610174,0.00019178,2]
[348650933,1736699433553,-53.83389826,0.00019178,2]
[348650934,1736699433565,-310.1179199,0.00019178,2]
[348650935,1736699433576,-500.0,0.00019178,2]
[348650936,1736699433587,-500.0,0.00019178,2]
[348650937,1736699433598,-500.0,0.00019178,2]
[348650938,1736699433609,-481.78787578,0.00019178,2]
[348650939,1736699433620,-500.0,0.00019178,2]
[348650940,1736699433631,-500.0,0.00019178,2]
[348650941,1736699433642,-500.0,0.00019178,2]
[348650942,1736699433653,-500.0,0.00019178,2]
[348650943,1736699433666,-500.0,0.00019178,2]
[348650944,1736699433676,-246.54138012,0.00019178,2]
[348650945,1736699433691,-500.0,0.00019178,2]
[348650946,1736699433703,-500.0,0.00019178,2]
[348650947,1736699433714,-500.0,0.00019178,2]
[348650948,1736699433726,-500.0,0.00019178,2]
[348650949,1736699433737,-513.00022379,0.00019178,2]
[348650950,1736699433749,-500.0,0.00019178,2]
[348650951,1736699433760,-502.73501005,0.00019178,2]
[348650952,1736699433772,-500.0,0.00019178,2]
[348650953,1736699433783,-500.0,0.00019178,2]
[348650954,1736699433795,-504.10714261,0.00019178,2]
[348650955,1736699433807,-500.0,0.00019178,2]
[348650956,1736699433819,-500.0,0.00019178,2]
[348650957,1736699433831,-500.0,0.00019178,2]
[348650958,1736699433842,-249.55780101,0.00019178,2]
[348650959,1736699433854,-500.0,0.00019178,2]
[348650960,1736699433865,-500.0,0.00019178,2]
[348650961,1736699433877,-500.0,0.00019178,2]
[348650962,1736699433888,-500.0,0.00019178,2]
[348650963,1736699433900,-514.91984371,0.00019178,2]
[348650964,1736699433911,-272.23234474,0.00019178,2]
[348650965,1736699433921,-507.98885058,0.00019178,2]
[348650966,1736699433930,-500.0,0.00019178,2]
[348650967,1736699433941,-500.0,0.00019178,2]
[348650968,1736699433951,-500.0,0.00019178,2]
[348650969,1736699433961,-500.0,0.00019178,2]
[348650970,1736699433971,-500.0,0.00019178,2]
[348650971,1736699433980,-500.0,0.00019178,2]
[348650972,1736699434100,-500.0,0.00019178,2]
[348650973,1736699434154,-500.0,0.00019178,2]
[348650974,1736699434167,-500.0,0.00019178,2]
[348650975,1736699434176,-500.0,0.00019178,2]
[348650976,1736699434186,-500.0,0.00019178,2]
[348650977,1736699434196,-500.0,0.00019178,2]
[348650978,1736699434206,-500.0,0.00019178,2]
[348650979,1736699434215,-500.0,0.00019178,2]
[348650980,1736699434225,-500.0,0.00019178,2]
[348650981,1736699434235,-500.0,0.00019178,2]
[348650982,1736699434245,-587.67191711,0.00019178,2]
[348650983,1736699434254,-500.0,0.00019178,2]
[348650984,1736699434264,-500.0,0.00019178,2]
[348650985,1736699434273,-500.0,0.00019178,2]
[348650986,1736699434283,-500.0,0.00019178,2]
[348650987,1736699434292,-504.74938416,0.00019178,2]
[348650988,1736699434302,-500.0,0.00019178,2]
[348650989,1736699434311,-500.0,0.00019178,2]
[348650990,1736699434321,-500.0,0.00019178,2]
[348650991,1736699434330,-500.0,0.00019178,2]
[348650992,1736699434339,-245.48894289,0.00019178,2]
[348650993,1736699434348,-500.0,0.00019178,2]
[348650994,1736699434357,-168.35461262,0.00019178,2]
[348650995,1736699434368,-504.03107627,0.00019178,2]
[348650996,1736699434377,-500.0,0.00019178,2]
[348650997,1736699434386,-500.0,0.00019178,2]
[348650998,1736699434396,-500.0,0.00019178,2]
[348650999,1736699434405,-500.0,0.00019178,2]
[348651000,1736699434416,-558.70576552,0.00019178,2]
[348651001,1736699434425,-500.0,0.00019178,2]
[348651002,1736699434435,-500.0,0.00019178,2]
[348651003,1736699434445,-481.49126444,0.00019178,2]
[348651004,1736699434454,-500.0,0.00019178,2]
[348651005,1736699434464,-500.0,0.00019178,2]
[348651006,1736699434473,-500.0,0.00019178,2]
[348651007,1736699434483,-500.0,0.00019178,2]
[348651008,1736699434493,-500.0,0.00019178,2]
[348651009,1736699434502,-500.0,0.00019178,2]
[348651010,1736699434512,-547.53,0.00019178,2]
[348651011,1736699434521,-500.0,0.00019178,2]
[348651012,1736699434531,-508.0536812,0.00019178,2]
[348651013,1736699434540,-500.0,0.00019178,2]
[348651014,1736699434549,-500.0,0.00019178,2]
[348651015,1736699434558,-500.0,0.00019178,2]
[348651016,1736699434567,-500.0,0.00019178,2]
[348651017,1736699434577,-500.0,0.00019178,2]
[348651018,1736699434586,-501.76469795,0.00019178,2]
[348651019,1736699434596,-500.0,0.00019178,2]
[348651020,1736699434605,-500.0,0.00019178,2]
[348651021,1736699434614,-500.0,0.00019178,2]
[348651022,1736699434623,-500.0,0.00019178,2]
[348651023,1736699434633,-500.0,0.00019178,2]
[348651024,1736699434643,-500.0,0.00019178,2]
[348651025,1736699434652,-500.0,0.00019178,2]
[348651026,1736699434663,-3190.84,0.00019178,2]
[348651027,1736699434673,-500.0,0.00019178,2]
[348651028,1736699434684,-500.0,0.00019178,2]
[348651029,1736699434694,-500.0,0.00019178,2]
[348651030,1736699434704,-500.0,0.00019178,2]
[348651031,1736699434713,-500.0,0.00019178,2]
[348651032,1736699434725,-500.0,0.00019178,2]
[348651033,1736699434734,-504.29554481,0.00019178,2]
[348651034,1736699434744,-535.82285954,0.00019178,2]
[348651035,1736699434753,-525.81625921,0.00019178,2]
[348651036,1736699434764,-503.00101157,0.00019178,2]
[348651037,1736699434773,-500.0,0.00019178,2]
[348651038,1736699434782,-500.0,0.00019178,2]
[348651039,1736699434792,-500.0,0.00019178,2]
[348651040,1736699434801,-500.0,0.00019178,2]
[348651041,1736699434810,-500.0,0.00019178,2]
[348651042,1736699434821,-500.0,0.00019178,2]
[348651043,1736699434831,-500.0,0.00019178,2]
[348651044,1736699434840,-500.0,0.00019178,2]
[348651045,1736699434850,-500.0,0.00019178,2]
[348651046,1736699434859,-500.0,0.00019178,2]
[348651047,1736699434869,-500.0,0.00019178,2]
[348651048,1736699434878,-500.0,0.00019178,2]
[348651049,1736699434887,-500.0,0.00019178,2]
[348651050,1736699434897,-500.0,0.00019178,7]
[348651051,1736699434907,-509.52539687,0.00019178,2]
[348651052,1736699434919,-500.0,0.00019178,2]
[348651053,1736699434929,-500.0,0.00019178,2]
[348651054,1736699434939,-500.0,0.00019178,2]
[348651055,1736699434949,-500.0,0.00019178,2]
[348651056,1736699434959,-500.0,0.00019178,2]
[348651057,1736699434969,-500.0,0.00019178,2]
[348651058,1736699434979,-500.0,0.00019178,2]
[348651059,1736699434989,-500.0,0.00019178,2]
[348651060,1736699434999,-500.0,0.00019178,2]
[348651061,1736699435009,-500.0,0.00019178,2]
[348651062,1736699435018,-614.03752322,0.00019178,2]
[348651063,1736699435028,-500.0,0.00019178,2]
[348651064,1736699435038,-500.0,0.00019178,2]
[348651065,1736699435048,-495.47648648,0.00019178,2]
[348651066,1736699435057,-500.0,0.00019178,2]
[348651067,1736699435067,-500.0,0.00019178,2]
[348651068,1736699435077,-500.0,0.00019178,2]
[348651069,1736699435087,-500.0,0.00019178,2]
[348651070,1736699435097,-500.0,0.00019178,2]
[348651071,1736699435106,-500.0,0.00019178,2]
[348651072,1736699435117,-326.79853314,0.00019178,2]
[348651073,1736699435127,-500.0,0.00019178,2]
[348651074,1736699435137,-500.0,0.00019178,2]
[348651075,1736699435147,-500.0,0.00019178,2]
[348651076,1736699435156,-500.0,0.00019178,2]
[348651077,1736699435169,-500.0,0.00019178,2]
[348651078,1736699435178,-2248.2,0.00019178,2]
[348651079,1736699435188,-2248.2,0.00019178,2]
[348651080,1736699435197,-2248.2,0.00019178,2]
[348651081,1736699435206,-2248.2,0.00019178,2]
[348651082,1736699435217,-2248.2,0.00019178,2]
[348651083,1736699435226,-500.0,0.00019178,2]
[348651084,1736699435236,-500.0,0.00019178,2]
[348651085,1736699435246,-500.0,0.00019178,2]
[348651086,1736699435255,-500.0,0.00019178,2]
[348651087,1736699435265,-500.0,0.00019178,2]
[348651088,1736699435274,-500.0,0.00019178,2]
[348651089,1736699435284,-500.0,0.00019178,2]
[348651090,1736699435293,-500.0,0.00019178,2]
[348651091,1736699435303,-500.0,0.00019178,2]
[348651092,1736699435312,-500.0,0.00019178,2]
[348651093,1736699435321,-500.0,0.00019178,2]
[348651094,1736699435331,-639.01724044,0.00019178,2]
[348651095,1736699435341,-500.0,0.00019178,2]
[348651096,1736699435350,-500.0,0.00019178,2]
[348651097,1736699435360,-500.0,0.00019178,2]
[348651098,1736699435369,-523.98550147,0.00019178,2]
[348651099,1736699435378,-500.0,0.00019178,2]
[348651100,1736699435387,-500.0,0.00019178,2]
[348651101,1736699435397,-500.0,0.00019178,2]
[348651102,1736699435406,-500.0,0.00019178,2]
[348651103,1736699435417,-500.0,0.00019178,2]
[348651104,1736699435427,-500.0,0.00019178,2]
[348651105,1736699435436,-500.0,0.00019178,2]
[348651106,1736699435446,-500.0,0.00019178,2]
[348651107,1736699435455,-189.98270487,0.00019178,2]
[348651108,1736699435465,-500.0,0.00019178,2]
[348651109,1736699435474,-500.0,0.00019178,2]
[348651110,1736699435483,-500.0,0.00019178,2]
[348651111,1736699435493,-500.0,0.00019178,2]
[348651112,1736699435503,-500.0,0.00019178,2]
[348651113,1736699435513,-500.0,0.00019178,2]
[348651114,1736699435523,-500.0,0.00019178,2]
[348651115,1736699435532,-501.37963215,0.00019178,2]
[348651116,1736699435541,-500.0,0.00019178,2]
[348651117,1736699435551,-500.0,0.00019178,2]
[348651118,1736699435561,-502.35920927,0.00019178,2]
[348651119,1736699435571,-500.0,0.00019178,2]
[348651120,1736699435580,-500.0,0.00019178,2]
[348651121,1736699435590,-500.0,0.00019178,2]
[348651122,1736699435600,-500.0,0.00019178,2]
[348651123,1736699435610,-500.0,0.00019178,2]
[348651124,1736699435620,-500.0,0.00019178,2]
[348651125,1736699435629,-500.0,0.00019178,2]
[348651126,1736699435639,-502.19352836,0.00019178,2]
[348651127,1736699435649,-500.0,0.00019178,2]
[348651128,1736699435659,-500.0,0.00019178,2]
[348651129,1736699435668,-502.10553831,0.00019178,2]
[348651130,1736699435678,-500.0,0.00019178,2]
[348651131,1736699435692,-500.66026076,0.00019178,2]
[348651132,1736699435701,-500.0,0.00019178,2]
[348651133,1736699435711,-500.0,0.00019178,2]
[348651134,1736699435720,-188.0,0.00019178,2]
[348651135,1736699435730,-500.0,0.00019178,2]
[348651136,1736699435740,-500.0,0.00019178,2]
[348651137,1736699435750,-500.0,0.00019178,2]
[348651138,1736699435758,-500.0,0.00019178,2]
[348651139,1736699435770,-500.0,0.00019178,2]
[348651140,1736699435780,-500.0,0.00019178,2]
[348651141,1736699435789,-500.0,0.00019178,2]
[348651142,1736699435798,-500.0,0.00019178,2]
[348651143,1736699435807,-1598.0,0.00019178,2]
[348651144,1736699435817,-500.0,0.00019178,2]
[348651145,1736699435827,-500.0,0.00019178,2]
[348651146,1736699435836,-500.0,0.00019178,2]
[348651147,1736699435846,-500.0,0.00019178,2]
[348651148,1736699435855,-500.0,0.00019178,2]
[348651149,1736699435864,-501.54508455,0.00019178,2]
[348651150,1736699435874,-500.0,0.00019178,2]
[348651151,1736699435884,-500.0,0.00019178,2]
[348651152,1736699435893,-505.83756815,0.00019178,2]
[348651153,1736699435903,-503.23368944,0.00019178,2]
[348651154,1736699435915,-500.0,0.00019178,2]
[348651155,1736699435925,-500.0,0.00019178,2]
[348651156,1736699435935,-500.0,0.00019178,2]
[348651157,1736699435944,-500.0,0.00019178,2]
[348651158,1736699435954,-500.0,0.00019178,2]
[348651159,1736699435965,-500.0,0.00019178,2]
[348651160,1736699435975,-500.0,0.00019178,2]
[348651161,1736699435985,-233.02777607,0.00019178,2]
[348651162,1736699435994,-500.0,0.00019178,2]
[348651163,1736699436004,-1212.1,0.00019178,2]
[348651164,1736699436014,-500.0,0.00019178,2]
[348651165,1736699436024,-308.93360188,0.00019178,2]
[348651166,1736699436034,-500.0,0.00019178,2]
[348651167,1736699436044,-500.0,0.00019178,2]
[348651168,1736699436054,-500.0,0.00019178,2]
[348651169,1736699436063,-500.0,0.00019178,2]
[348651170,1736699436073,-500.0,0.00019178,2]
[348651171,1736699436083,-500.0,0.00019178,2]
[348651172,1736699436093,-288.63080699,0.00019178,2]
[348651173,1736699436102,-500.0,0.00019178,2]
[348651174,1736699436111,-500.0,0.00019178,2]
[348651175,1736699436120,-500.0,0.00019178,2]
[348651176,1736699436130,-609.28029143,0.00019178,2]
[348651177,1736699436140,-500.0,0.00019178,2]
[348651178,1736699436149,-500.0,0.00019178,2]
[348651179,1736699436162,-500.0,0.00019178,2]
[348651180,1736699436171,-500.0,0.00019178,2]
[348651181,1736699436180,-500.0,0.00019178,2]
[348651182,1736699436192,-537.75934869,0.00019178,2]
[348651183,1736699436202,-500.0,0.00019178,2]
[348651184,1736699436211,-500.0,0.00019178,2]
[348651185,1736699436220,-500.0,0.00019178,2]
[348651186,1736699436230,-585.5,0.00019178,2]
[348651187,1736699436239,-500.0,0.00019178,2]
[348651188,1736699436248,-500.0,0.00019178,2]
[348651189,1736699436258,-500.0,0.00019178,2]
[348651190,1736699436267,-500.0,0.00019178,2]
[348651191,1736699436277,-502.41721277,0.00019178,2]
[348651192,1736699436286,-500.0,0.00019178,2]
[348651193,1736699436296,-500.0,0.00019178,2]
[348651194,1736699436305,-500.0,0.00019178,2]
[348651195,1736699436314,-500.0,0.00019178,2]
[348651196,1736699436323,-1003.86338208,0.00019178,2]
[348651197,1736699436333,-500.0,0.00019178,2]
[348651198,1736699436342,-500.0,0.00019178,2]
[348651199,1736699436351,-500.0,0.00019178,2]
[348651200,1736699436360,-500.0,0.00019178,2]
[348651201,1736699436370,-502.70210623,0.00019178,2]
[348651202,1736699436379,-500.0,0.00019178,2]
[348651203,1736699436389,-636.43,0.00019178,2]
[348651204,1736699436399,-500.0,0.00019178,2]
[348651205,1736699436413,-500.0,0.00019178,2]
[348651206,1736699436423,-669.62,0.00019178,2]
[348651207,1736699436432,-500.0,0.00019178,2]
[348651208,1736699436441,-500.0,0.00019178,2]
[348651209,1736699436451,-500.0,0.00019178,2]
[348651210,1736699436460,-500.0,0.00019178,2]
[348651211,1736699436470,-514.42,0.00019178,2]
[348651212,1736699436479,-502.85004586,0.00019178,2]
[348651213,1736699436489,-500.0,0.00019178,2]
[348651214,1736699436499,-500.0,0.00019178,2]
[348651215,1736699436509,-500.0,0.00019178,2]
[348651216,1736699436518,-500.0,0.00019178,2]
[348651217,1736699436528,-500.0,0.00019178,2]
[348651218,1736699436537,-500.0,0.00019178,2]
[348651219,1736699436547,-500.0,0.00019178,2]
[348651220,1736699436556,-500.0,0.00019178,2]
[348651221,1736699436566,-500.0,0.00019178,2]
[348651222,1736699436576,-717.2,0.00019178,2]
[348651223,1736699436585,-453.98823625,0.00019178,2]
[348651224,1736699436594,-500.0,0.00019178,2]
[348651225,1736699436604,-500.0,0.00019178,2]
[348651226,1736699436613,-500.0,0.00019178,2]
[348651227,1736699436622,-500.0,0.00019178,2]
[348651228,1736699436632,-500.0,0.00019178,2]
[348651229,1736699436641,-500.0,0.00019178,2]
[348651230,1736699436651,-500.0,0.00019178,2]
[348651231,1736699436661,-500.0,0.00019178,2]
[348651232,1736699436671,-345.68717504,0.00019178,2]
[348651233,1736699436683,-10047.14,0.00019178,2]
[348651234,1736699436692,-500.0,0.00019178,2]
[348651235,1736699436701,-500.0,0.00019178,2]
[348651236,1736699436710,-500.0,0.00019178,2]
[348651237,1736699436719,-500.0,0.00019178,2]
[348651238,1736699436729,-500.0,0.00019178,2]